fUSD/lending_fUSD_20260218
["ID","MTS","AMOUNT","RATE_DAILY","PERIOD"]
[405893041,1771399853020,-600.0,0.000143,2]
[405893042,1771399853030,-1900.0,0.000143,2]
[405893043,1771399853040,-4900.0,0.000143,2]
[405893044,1771399853050,-500.0,0.000143,2]
[405893045,1771399853061,-500.0,0.000143,2]
[405893046,1771399853074,-500.0,0.000143,2]
[405893047,1771399853085,-500.0,0.000143,2]
[405893048,1771399853096,-600.0,0.000143,2]
[405893049,1771399853107,-1900.0,0.000143,2]
[405893050,1771399853118,-4900.0,0.000143,2]
[405893051,1771399853128,-500.0,0.000143,2]
[405893052,1771399853139,-500.0,0.000143,2]
[405893053,1771399853151,-500.0,0.000143,2]
[405893054,1771399853161,-600.0,0.000143,2]
[405893055,1771399853172,-1900.0,0.000143,2]
[405893056,1771399853183,-4900.0,0.000143,2]
[405893057,1771399853193,-500.0,0.000143,2]
[405893058,1771399853204,-500.0,0.000143,2]
[405893059,1771399853214,-500.0,0.000143,2]
[405893060,1771399853224,-500.0,0.000143,2]
[405893061,1771399853235,-500.0,0.000143,2]
[405893062,1771399853245,-1900.0,0.000143,2]
[405893063,1771399853259,-500.0,0.000143,2]
[405893064,1771399853269,-500.0,0.000143,2]
[405893065,1771399853279,-4900.0,0.000143,2]
[405893066,1771399853288,-500.0,0.000143,2]
[405893067,1771399853298,-500.0,0.000143,2]
[405893068,1771399853311,-600.0,0.000143,2]
[405893069,1771399853320,-500.0,0.000143,2]
[405893070,1771399853330,-500.0,0.000143,2]
[405893071,1771399853340,-4900.0,0.000143,2]
[405893072,1771399853350,-600.0,0.000143,2]
[405893073,1771399853359,-500.0,0.000143,2]
[405893074,1771399853369,-500.0,0.000143,2]
[405893075,1771399853379,-4900.0,0.000143,2]
[405893076,1771399853389,-600.0,0.000143,2]
[405893077,1771399853399,-500.0,0.000143,2]
[405893078,1771399853410,-500.0,0.000143,2]
[405893079,1771399853420,-600.0,0.000143,2]
[405893080,1771399853430,-500.0,0.000143,2]
[405893081,1771399853440,-600.0,0.000143,2]
[405893082,1771399853453,-500.0,0.000143,2]
[405893083,1771399853464,-600.0,0.000143,2]
[405893084,1771399853474,-500.0,0.000143,2]
[405893085,1771399853484,-600.0,0.000143,2]
[405893086,1771399853494,-500.0,0.000143,2]
[405893087,1771399853504,-500.0,0.000143,2]
[405893088,1771399853514,-600.0,0.000143,2]
[405893089,1771399853524,-500.0,0.000143,2]
[405893090,1771399853813,-600.0,0.000143,2]
[405893091,1771399853824,-500.0,0.000143,2]
[405893092,1771399853834,-600.0,0.000143,2]
[405893093,1771399853843,-500.0,0.000143,2]
[405893094,1771399853854,-500.0,0.000143,2]
[405893095,1771399853863,-500.0,0.000143,2]
[405893096,1771399853872,-500.0,0.000143,2]
[405893097,1771399853882,-500.0,0.000143,2]
[405893098,1771399853891,-500.0,0.000143,2]
[405893099,1771399853901,-500.0,0.000143,2]
[405893100,1771399853911,-500.0,0.000143,2]
[405893101,1771399853920,-500.0,0.000143,2]
[405893102,1771399853929,-500.0,0.000143,2]
[405893103,1771399853946,-500.0,0.000143,2]
[405893104,1771399853959,-500.0,0.000143,2]
[405893105,1771399853970,-500.0,0.000143,2]
[405893106,1771399853980,-500.0,0.000143,2]
[405893107,1771399853990,-500.0,0.000143,2]
[405893108,1771399854000,-500.0,0.000143,2]
[405893109,1771399854011,-500.0,0.000143,2]
[405893110,1771399854021,-500.0,0.000143,2]
[405893111,1771399854031,-937.539426,0.000143,2]
[405893112,1771399854041,-937.539426,0.000143,2]
[405893113,1771399854051,-937.539426,0.000143,2]
[405893114,1771399854061,-937.539426,0.000143,2]
[405893115,1771399854072,-10350.40926653,0.0001439,2]
[405893116,1771399854084,-433.45,0.00014479,2]
[405893117,1771399854094,-151.0,0.00014634,2]
[405893118,1771399854104,-151.0,0.00014634,2]
[405893119,1771399854115,-150.0,0.00014657,2]
[405893120,1771399854125,-1275.0,0.00014657,2]
[405893121,1771399854135,-1209.0,0.00014657,2]
[405893122,1771399854146,-617.0,0.00014657,2]
[405893123,1771399854157,-298.26089446,0.00014669,2]
[405893124,1771399854167,-152.0,0.00014688,7]
[405893125,1771399854177,-1164.0,0.00014694,2]
[405893126,1771399854187,-304.721091,0.00014695,7]
[405893127,1771399854198,-3620.0,0.00014749,2]
[405893128,1771399854208,-166.66,0.00014772,2]
[405893129,1771399854218,-692.98490628,0.00014795,2]
[405893130,1771399854228,-1500.0,0.00014795,2]
[405893131,1771399854238,-1507.90792769,0.00014795,2]
[405893132,1771399854248,-972.65636518,0.00014795,2]
[405893133,1771399854258,-1020.24582677,0.00014795,2]
[405893134,1771399854268,-1500.0,0.00014795,2]
[405893135,1771399854278,-320.41394167,0.00014795,2]
[405893136,1771399854287,-1500.0,0.00014795,2]
[405893137,1771399854296,-1500.0,0.00014795,2]
[405893138,1771399854306,-1500.0,0.00014795,2]
[405893139,1771399854316,-1500.0,0.00014795,2]
[405893140,1771399854325,-248.69618497,0.00014795,2]
[405893141,1771399854335,-897.67367643,0.00014795,2]
[405893142,1771399854344,-1500.0,0.00014795,2]
[405893143,1771399854354,-1500.0,0.00014795,2]
[405893144,1771399854364,-1500.0,0.00014795,2]
[405893145,1771399854374,-1500.0,0.00014795,2]
[405893146,1771399854383,-504.94826631,0.00014795,2]
[405893147,1771399854392,-1500.0,0.00014795,2]
[405893148,1771399854402,-1601.60829552,0.00014795,2]
[405893149,1771399854412,-1495.09309857,0.00014795,2]
[405893150,1771399854422,-153.90762454,0.00014795,2]
[405893151,1771399854431,-1500.0,0.00014795,2]
[405893152,1771399854441,-1004.00693754,0.00014795,2]
[405893153,1771399854452,-510.8519794,0.00014795,2]
[405893154,1771399854462,-1513.44511297,0.00014795,2]
[405893155,1771399854471,-1006.79921457,0.00014795,2]
[405893156,1771399854480,-1598.38505595,0.00014795,2]
[405893157,1771399854490,-1500.0,0.00014795,2]
[405893158,1771399854504,-1500.0,0.00014795,2]
[405893159,1771399854515,-1500.0,0.00014795,2]
[405893160,1771399854525,-400.78287561,0.00014795,2]
[405893161,1771399854535,-349.0,0.00014802,3]
[405893162,1771399854547,-248.0,0.00014802,3]
[405893163,1771399854557,-160.05,0.00014847,2]
[405893164,1771399854567,-176.09216216,0.000149,2]
[405893165,1771399854579,-176.09216214,0.000149,2]
[405893166,1771399854589,-176.09216214,0.000149,2]
[405893167,1771399854599,-250.0,0.00015,2]
[405893168,1771399854609,-2055.75160849,0.00015,2]
[405893169,1771399854619,-8003.21142079,0.00015,2]
[405893170,1771399854629,-151.78197443,0.00015,2]
[405893171,1771399854639,-416.67972,0.00015068,2]
[405893172,1771399854649,-416.67972,0.00015068,2]
[405893173,1771399854658,-416.67972,0.00015068,2]
[405893174,1771399854668,-900.0,0.00015068,2]
[405893175,1771399854678,-416.67972,0.00015068,2]
[405893176,1771399854688,-433.45,0.00015082,2]
[405893177,1771399854698,-166.66,0.00015083,2]
[405893178,1771399854708,-152.0,0.00015095,8]
[405893179,1771399854718,-2951.65651745,0.00015164,2]
[405893180,1771399854728,-309.29654756,0.00015217,2]
[405893181,1771399854737,-164.545765,0.00015217,2]
[405893182,1771399854747,-1517.64,0.000153,2]
[405893183,1771399854757,-1500.0,0.00015342,2]
[405893184,1771399854766,-2000.0,0.00015342,2]
[405893185,1771399854776,-2000.0,0.00015342,2]
[405893186,1771399854786,-1016.9973366,0.00015342,2]
[405893187,1771399854795,-495.48711231,0.00015342,2]
[405893188,1771399854806,-2000.0,0.00015342,2]
[405893189,1771399854816,-2000.0,0.00015342,2]
[405893190,1771399854826,-2000.0,0.00015342,2]
[405893191,1771399854835,-658.90489116,0.00015342,2]
[405893192,1771399854845,-805.70113719,0.00015342,2]
[405893193,1771399854854,-1149.30748282,0.00015342,2]
[405893194,1771399854864,-887.35182664,0.00015342,2]
[405893195,1771399854874,-502.57889052,0.00015342,2]
[405893196,1771399854884,-2000.0,0.00015342,2]
[405893197,1771399854893,-2000.0,0.00015342,2]
[405893198,1771399854903,-166.66,0.00015394,2]
[405893199,1771399854913,-509.67431305,0.000154,2]
[405893200,1771399854923,-213.39,0.00015412,2]
[405893201,1771399854932,-208.26,0.00015469,2]
[405893202,1771399854942,-221.34,0.00015479,2]
[405893203,1771399854952,-152.0,0.00015501,9]
[405893204,1771399854961,-349.0,0.00015521,3]
[405893205,1771399854971,-248.0,0.00015521,3]
[405893206,1771399854980,-482.75960723,0.00015639,2]
[405893207,1771399854990,-482.75960727,0.00015639,2]
[405893208,1771399855000,-433.45,0.00015686,2]
[405893209,1771399855010,-166.66,0.00015705,2]
[405893210,1771399855020,-320.74051982,0.00015765,2]
[405893211,1771399855030,-2246.02722084,0.00015807,2]
[405893212,1771399855045,-473.37745638,0.00015857,2]
[405893213,1771399855055,-1088.58658136,0.00015866,2]
[405893214,1771399855065,-35869.0,0.00015879,2]
[405893215,1771399855079,-2500.0,0.0001589,2]
[405893216,1771399855089,-2011.58032327,0.0001589,2]
[405893217,1771399855099,-2014.03988287,0.0001589,2]
[405893218,1771399855109,-1967.22886031,0.0001589,2]
[405893219,1771399855122,-2293.67865987,0.0001589,2]
[405893220,1771399855132,-516.06777601,0.0001589,2]
[405893221,1771399855142,-2515.02772371,0.0001589,2]
[405893222,1771399855156,-152.0,0.00015908,10]
[405893223,1771399855166,-5000.0,0.0001596,2]
[405893224,1771399855177,-173.62051493,0.00016,3]
[405893225,1771399855187,-2046.5660041,0.00016,2]
[405893226,1771399855197,-418.89480844,0.00016,2]
[405893227,1771399855207,-277.203629,0.00016,2]
[405893228,1771399855217,-1000.0,0.00016005,7]
[405893229,1771399855226,-166.66,0.00016016,2]
[405893230,1771399855236,-482.75960727,0.0001603,2]
[405893231,1771399855245,-1500.0,0.00016082,2]
[405893232,1771399855255,-9999.99,0.00016116,2]
[405893233,1771399855265,-160.05,0.00016128,2]
[405893234,1771399855275,-221.32,0.00016144,2]
[405893235,1771399855285,-150.0,0.000162,2]
[405893236,1771399855295,-340.0,0.00016222,2]
[405893237,1771399855306,-349.0,0.00016241,3]
[405893238,1771399855316,-248.0,0.00016241,3]
[405893239,1771399855328,-433.45,0.00016289,2]
[405893240,1771399855339,-581.0,0.000163,2]
[405893241,1771399855349,-332.60791905,0.00016313,2]
[405893242,1771399855359,-152.0,0.00016315,11]
[405893243,1771399855369,-166.66,0.00016327,2]
[405893244,1771399855379,-200.0,0.0001634,2]
[405893245,1771399855389,-500.0,0.00016356,2]
[405893246,1771399855399,-500.0,0.00016356,2]
[405893247,1771399855408,-1013.62,0.00016399,2]
[405893248,1771399855418,-668.89,0.00016399,2]
[405893249,1771399855431,-500.0,0.00016399,2]
[405893250,1771399855442,-1688.23,0.00016399,2]
[405893251,1771399855451,-634.99,0.00016399,2]
[405893252,1771399855461,-1230.94,0.00016399,2]
[405893253,1771399855471,-2836.0,0.000164,2]
[405893254,1771399855481,-842.0,0.000164,2]
[405893255,1771399855491,-2836.0,0.000164,2]
[405893256,1771399855501,-192.0,0.000164,2]
[405893257,1771399855510,-2836.0,0.000164,2]
[405893258,1771399855520,-2836.0,0.000164,2]
[405893259,1771399855531,-2864.0,0.000164,2]
[405893260,1771399855541,-151.0,0.000164,2]
[405893261,1771399855550,-482.75960727,0.0001642,2]
[405893262,1771399855560,-2173.1,0.00016438,2]
[405893263,1771399855570,-890.56,0.00016438,2]
[405893264,1771399855580,-841.0,0.00016438,2]
[405893265,1771399855590,-151.0,0.00016438,2]
[405893266,1771399855600,-169.309424,0.00016438,2]
[405893267,1771399855610,-169.309424,0.00016438,2]
[405893268,1771399855620,-169.309424,0.00016438,2]
[405893269,1771399855629,-169.309424,0.00016438,2]
[405893270,1771399855639,-150.0,0.00016438,2]
[405893271,1771399855649,-900.0,0.00016438,2]
[405893272,1771399855659,-480.214914,0.00016438,2]
[405893273,1771399855669,-480.214914,0.00016438,2]
[405893274,1771399855679,-480.214914,0.00016438,2]
[405893275,1771399855689,-480.214914,0.00016438,2]
[405893276,1771399855700,-385.495219,0.00016438,2]
[405893277,1771399855710,-385.495219,0.00016438,2]
[405893278,1771399855719,-385.495219,0.00016438,2]
[405893279,1771399855730,-385.495219,0.00016438,2]
[405893280,1771399855740,-1499.04853715,0.00016438,2]
[405893281,1771399855750,-2951.65651745,0.00016532,2]
[405893282,1771399855760,-150.0,0.0001656,2]
[405893283,1771399855770,-361.56905183,0.000166,2]
[405893284,1771399855780,-208.26,0.00016638,2]
[405893285,1771399855790,-221.34,0.00016657,2]
[405893286,1771399855800,-2173.1,0.00016712,2]
[405893287,1771399855810,-841.0,0.00016712,2]
[405893288,1771399855823,-2836.0,0.0001672,2]
[405893289,1771399855833,-842.0,0.0001672,2]
[405893290,1771399855843,-160.0,0.0001672,2]
[405893291,1771399855853,-842.0,0.0001672,2]
[405893292,1771399855864,-2836.0,0.0001672,2]
[405893293,1771399855874,-152.0,0.00016721,12]
[405893294,1771399855883,-1000.0,0.00016766,2]
[405893295,1771399855892,-482.75960727,0.00016811,2]
[405893296,1771399855903,-1000.0,0.00016816,2]
[405893297,1771399855913,-344.91441206,0.00016861,2]
[405893298,1771399855923,-150.0,0.0001692,2]
[405893299,1771399855933,-1000.0,0.0001694,2]
[405893300,1771399855944,-581.0,0.00016943,2]
[405893301,1771399855954,-349.0,0.00016961,3]
[405893302,1771399855965,-248.0,0.00016961,3]
[405893303,1771399855974,-1000.0,0.00016965,2]
[405893304,1771399855984,-2173.1,0.00016986,2]
[405893305,1771399855994,-841.0,0.00016986,2]
[405893306,1771399856007,-201.63543106,0.00016986,2]
[405893307,1771399856016,-3381.3220435,0.00016996,2]
[405893308,1771399856026,-300.0,0.00016999,2]
[405893309,1771399856036,-300.0,0.00016999,2]
[405893310,1771399856046,-666.0,0.00016999,2]
[405893311,1771399856057,-300.0,0.00017,2]
[405893312,1771399856067,-203323.77540195,0.00017,2]
[405893313,1771399856913,-915.12707478,0.00017,2]
[405893314,1771399900797,8179.48409494,0.0001782,30]
[405893316,1771400044427,1067.415,0.00018,30]
[405893317,1771400058344,1700.0,0.000193,120]
[405893318,1771400092759,300.0,0.00019,120]
[405893319,1771400122253,1611.82239337,0.00018,30]
[405893320,1771400231557,2000.0,0.00018,30]
[405893321,1771400281016,15092.0,0.00019,120]
[405893325,1771400990317,150.0,0.00019,120]
[405893329,1771401031797,-150.0,7.299e-05,2]
[405893330,1771401031807,-117.09849734,7.704e-05,2]
[405893331,1771401031819,-32.90150266,7.704e-05,2]
[405893332,1771401031829,-150.0,7.923e-05,2]
[405893333,1771401031838,-300.0,7.923e-05,2]
[405893334,1771401031848,-1200.0,7.923e-05,2]
[405893335,1771401031857,-1001748.2232676,7.924e-05,2]
[405893336,1771401031933,-1456.93284746,7.924e-05,2]
[405893337,1771401031965,-1363.17503185,7.924e-05,2]
[405893338,1771401031976,-355076.61706222,7.924e-05,2]
[405893339,1771401031988,-91898.74092547,7.924e-05,2]
[405893340,1771401032000,-104163.07747332,7.924e-05,2]
[405893341,1771401032012,-203400.71013127,7.924e-05,2]
[405893349,1771401037962,-1740892.52326081,7.924e-05,2]
[405893350,1771401037972,-937.737,7.961e-05,2]
[405893351,1771401037981,-162.986,7.961e-05,2]
[405893352,1771401037990,-838.94344008,7.961e-05,2]
[405893353,1771401038000,-213.04797785,7.961e-05,2]
[405893354,1771401038009,-9612.01432737,7.961e-05,2]
[405893355,1771401038019,-1297.59034333,8.023e-05,2]
[405893356,1771401038029,-426.93303057,8.023e-05,2]
[405893357,1771401038039,-838.94344008,8.066e-05,2]
[405893358,1771401038049,-9612.01432737,8.066e-05,2]
[405893359,1771401038059,-166.52,8.074e-05,2]
[405893360,1771401038070,-150.00000001,8.11e-05,2]
[405893361,1771401038080,-1297.59034333,8.122e-05,2]
[405893362,1771401038090,-3428266.84474005,8.123e-05,2]
[405893363,1771401038102,-847.0,8.123e-05,2]
[405893370,1771401040046,-1558.81911971,8.123e-05,2]
[405893371,1771401040198,-1833.32,8.123e-05,2]
[405893372,1771401040347,-6380.75190401,8.123e-05,2]
[405893373,1771401040388,-520837.38586928,8.123e-05,2]
[405893397,1771401045824,-8643.47151459,8.123e-05,2]
[405893405,1771401046060,-7442.0,8.123e-05,2]
[405893406,1771401046075,-1851.83897394,8.123e-05,2]
[405893407,1771401046157,-1071.75725676,8.123e-05,2]
[405893408,1771401046181,-257.81152884,8.123e-05,2]
[405893424,1771401669218,64515.84076803,0.00018,30]
[405893429,1771402232243,-150.00000001,7.299e-05,2]
[405893430,1771402232254,-150.0,7.299e-05,2]
[405893431,1771402232263,-381.79999999,7.362e-05,2]
[405893437,1771402238231,-1118.20000001,7.362e-05,2]
[405893438,1771402238241,-500.0,7.469e-05,2]
[405893439,1771402238251,-150.0,7.511e-05,2]
[405893440,1771402238260,-300.0,7.511e-05,2]
[405893441,1771402238270,-1200.0,7.511e-05,2]
[405893442,1771402238279,-8204.89288503,7.512e-05,2]
[405893443,1771402238291,-2266.50399619,7.512e-05,2]
[405893444,1771402238303,-3489528.60311878,7.512e-05,2]
[405893445,1771402238313,-160.27,7.549e-05,2]
[405893446,1771402238322,-9612.01432737,7.549e-05,2]
[405893447,1771402238332,-838.94344008,7.549e-05,2]
[405893448,1771402238342,-937.737,7.57e-05,2]
[405893449,1771402238351,-162.986,7.57e-05,2]
[405893450,1771402238361,-15431.48,7.612e-05,2]
[405893451,1771402238372,-1297.59034333,7.723e-05,2]
[405893452,1771402238381,-426.93303057,7.723e-05,2]
[405893453,1771402238391,-195.0,7.92e-05,2]
[405893454,1771402238401,-2269.32915522,7.961e-05,2]
[405893455,1771402238411,-1079.0,7.961e-05,2]
[405893456,1771402238420,-1314.0,8.017e-05,2]
[405893457,1771402238430,-460.0,8.017e-05,2]
[405893458,1771402238439,-414.0,8.064e-05,2]
[405893459,1771402238449,-291.0,8.085e-05,2]
[405893460,1771402238459,-397.0,8.105e-05,2]
[405893461,1771402238469,-150.99,8.115e-05,2]
[405893462,1771402238479,-1612.57,8.115e-05,2]
[405893463,1771402238488,-9999.99,8.115e-05,2]
[405893464,1771402238498,-500.0,8.115e-05,2]
[405893465,1771402238507,-1297.59034333,8.122e-05,2]
[405893466,1771402238517,-1656336.66147217,8.123e-05,2]
[405893467,1771402238530,-3642.43950382,8.123e-05,2]
[405893468,1771402238541,-3758.79154139,8.123e-05,2]
[405893471,1771402238552,-14161.19775467,8.123e-05,2]
[405893473,1771402238563,-17192.34740202,8.123e-05,2]
[405893690,1771402240656,-182.02800216,7.511e-05,2]
[405893692,1771402240666,-586.68494129,8.123e-05,2]
[405893695,1771402240685,-392.40306929,8.123e-05,2]
[405893697,1771402240696,-1846.89557749,8.123e-05,2]
[405893706,1771402240769,-520837.38586928,8.123e-05,2]
[405893956,1771402244020,-213.04797785,7.549e-05,2]
[405893957,1771402244030,-144.9558736,8.123e-05,2]
[405893958,1771402244041,-1027.23724345,8.123e-05,2]
[405893959,1771402244053,-8145.31845344,8.123e-05,2]
[405893965,1771402246042,-183118.32096531,8.123e-05,2]
[405893966,1771402246171,-5570.45453968,8.123e-05,2]
[405893967,1771402246183,-2596.7020555,8.123e-05,2]
[405895144,1771402898410,150.0,0.00011233,120]
[405895145,1771403053747,166.52,5.835e-05,2]
[405895219,1771403432907,-715.13,7.292e-05,2]
[405895221,1771403432916,-150.00000001,7.299e-05,2]
[405895223,1771403432926,-1200.0,7.561e-05,2]
[405895225,1771403432935,-150.0,7.561e-05,2]
[405895227,1771403432945,-1533.9079,7.562e-05,2]
[405895229,1771403432954,-43899.41012625,7.562e-05,2]
[405895236,1771403433014,-4091.94786815,7.562e-05,2]
[405895241,1771403433043,-302.04407022,7.562e-05,2]
[405895276,1771403438247,-1695412.8007847,7.562e-05,2]
[405895280,1771403438497,-13783.18233566,7.562e-05,2]
[405895285,1771403440933,-520837.38586928,7.562e-05,2]
[405895306,1771403446123,-868.35808434,7.562e-05,2]
[405895308,1771403446135,-138446.77097038,7.562e-05,2]
[405895309,1771403446150,-1082358.09989102,7.562e-05,2]
[405895310,1771403446158,-559.29562672,7.66e-05,2]
[405895313,1771403446167,-6408.00955158,7.66e-05,2]
[405895317,1771403446177,-1297.59034333,7.661e-05,2]
[405895319,1771403446186,-61064.7042913,7.762e-05,2]
[405895322,1771403446195,-88518.45910525,7.762e-05,2]
[405895329,1771403446257,-3301.08753728,7.762e-05,2]
[405895331,1771403446268,-14920.0,7.762e-05,2]
[405895332,1771403446279,-10163.5,7.762e-05,2]
[405895333,1771403446511,-680.76275655,7.762e-05,2]
[405895393,1771404087672,160.29,5.893e-05,2]
[405895394,1771404157487,13490.0,0.00018,30]
[405895395,1771404272162,873.19,6.66e-05,2]
[405895396,1771404332556,1396.13915522,6.56e-05,2]
[405895399,1771404631283,-400.0,6.7e-05,2]
[405895400,1771404631294,-335.90085166,6.762e-05,2]
[405895401,1771404631393,-1164.09914834,6.762e-05,2]
[405895402,1771404631403,-900.0,6.8e-05,2]
[405895403,1771404631412,-1400.0,6.9e-05,2]
[405895404,1771404631422,-300.0,6.948e-05,2]
[405895405,1771404631431,-3080.02297949,6.949e-05,2]
[405895406,1771404631443,-10085.19955552,6.949e-05,2]
[405895407,1771404631461,-701.82986017,6.949e-05,2]
[405895412,1771404637387,-1564.42760482,6.949e-05,2]
[405895413,1771404637397,-817.18131868,7e-05,2]
[405895414,1771404637493,-1082.81868132,7e-05,2]
[405895415,1771404637503,-200.0,7.042e-05,2]
[405895416,1771404637512,-150.0,7.299e-05,2]
[405895417,1771404637522,-500.0,7.299e-05,2]
[405895418,1771404637532,-500.0,7.299e-05,2]
[405895419,1771404637542,-500.0,7.299e-05,2]
[405895420,1771404637551,-644.2592654,7.299e-05,2]
[405895421,1771404637561,-1701608.00716535,7.3e-05,2]
[405895422,1771404637573,-1623.70486216,7.3e-05,2]
[405895423,1771404637584,-762591.19010003,7.3e-05,2]
[405895424,1771404637595,-5018.84606289,7.3e-05,2]
[405895425,1771404637614,-3847.83174617,7.3e-05,2]
[405895426,1771404637624,-2935.49188818,7.3e-05,2]
[405895427,1771404637635,-1364.88945289,7.3e-05,2]
[405895428,1771404637646,-1554.53461667,7.3e-05,2]
[405895430,1771404637658,-451.15504761,7.3e-05,2]
[405895456,1771404639537,-11140.9429633,7.3e-05,2]
[405895457,1771404639696,-347.73608874,7.3e-05,2]
[405895458,1771404639707,-1121.7162642,7.3e-05,2]
[405895459,1771404639752,-11257.16749743,7.3e-05,2]
[405895460,1771404639763,-590.72355662,7.3e-05,2]
[405895461,1771404639775,-1280.8790409,7.3e-05,2]
[405895471,1771404642838,-488.36938167,7.3e-05,2]
[405895474,1771404642851,-524700.96950459,7.3e-05,2]
[405895566,1771404651200,-15000.0,7.3e-05,2]
[405895567,1771405142861,199.0,0.00019,120]
[405895568,1771405172466,188.0,0.00018,30]
[405895569,1771405261038,-200.0,8.935e-05,12]
[405895570,1771405261060,-188.0,8.935e-05,12]
[405895571,1771405261083,-200.0,8.935e-05,12]
[405895572,1771405261107,-200.0,8.935e-05,12]
[405895573,1771405261128,-200.0,8.935e-05,12]
[405895574,1771405261154,-220.0,8.935e-05,12]
[405895575,1771405261176,-792.0,8.935e-05,12]
[405895576,1771405281400,2933.22,0.00018,30]
[405895577,1771405371916,-21.0,8.935e-05,12]
[405895578,1771405371944,-200.0,8.935e-05,12]
[405895579,1771405371971,-200.0,8.935e-05,12]
[405895580,1771405371996,-161.0,8.935e-05,12]
[405895581,1771405559371,150.0,0.00018,30]
[405895582,1771405564699,-150.0,8.935e-05,12]
[405895583,1771405564723,-150.0,8.935e-05,12]
[405895584,1771405564746,-150.0,8.935e-05,12]
[405895585,1771405564768,-291.0,8.935e-05,12]
[405895586,1771405576633,177.06,6.56e-05,2]
[405895588,1771405724336,8426.81084478,6.514e-05,2]
[405895589,1771405724358,10000.01,6.514e-05,2]
[405895590,1771405724380,10000.01,6.514e-05,2]
[405895591,1771405724403,10000.01,6.514e-05,2]
[405895592,1771405724426,10000.01,6.514e-05,2]
[405895593,1771405724449,10000.01,6.514e-05,2]
[405895594,1771405724470,10000.01,6.514e-05,2]
[405895595,1771405724492,10000.01,6.514e-05,2]
[405895596,1771405724514,10000.01,6.514e-05,2]
[405895597,1771405724535,10000.01,6.514e-05,2]
[405895598,1771405741372,300.0,6.513e-05,2]
[405895599,1771405741657,150.0,6.513e-05,2]
[405895600,1771405801330,300.0,6.513e-05,2]
[405895601,1771405801487,1200.0,6.513e-05,2]
[405895602,1771405806391,261.0,6.513e-05,3]
[405895603,1771405808175,186.0,6.513e-05,3]
[405895604,1771405831397,-2277.12736625,6.514e-05,2]
[405895605,1771405831409,-1726.8840699,6.514e-05,2]
[405895606,1771405831482,-722.82438727,6.514e-05,2]
[405895607,1771405831494,-405.95984743,6.514e-05,2]
[405895608,1771405831505,-341.348914,6.514e-05,2]
[405895609,1771405831517,-962.45447268,6.514e-05,2]
[405895610,1771405831559,-2588291.69803333,6.514e-05,2]
[405895611,1771405831571,-213858.08971433,6.514e-05,2]
[405895612,1771405831582,-256755.84132793,6.514e-05,2]
[405895613,1771405831594,-336230.8710221,6.514e-05,2]
[405895614,1771405831603,-35675.45075026,6.514e-05,2]
[405895615,1771405831614,-1254.41808677,6.514e-05,2]
[405895617,1771405831626,-2413.61553984,6.514e-05,2]
[405895619,1771405831638,-1810.3982175,6.514e-05,2]
[405895625,1771405832816,348.99654574,6.513e-05,2]
[405895626,1771405832912,183.39780356,6.513e-05,2]
[405895627,1771405834544,-583.62357483,6.514e-05,2]
[405895628,1771405834742,500.09851978,6.513e-05,2]
[405895629,1771405834775,500.0,6.513e-05,2]
[405895630,1771405834810,500.0,6.513e-05,2]
[405895631,1771405834852,500.0,6.513e-05,2]
[405895632,1771405834912,70.51713092,6.513e-05,2]
[405895633,1771405834938,429.48286908,6.513e-05,2]
[405895634,1771405834974,383.2168494,6.513e-05,2]
[405895635,1771405835014,500.0,6.513e-05,2]
[405895636,1771405835055,500.0,6.513e-05,2]
[405895637,1771405835088,500.0,6.513e-05,2]
[405895638,1771405835140,500.0,6.513e-05,2]
[405895639,1771405835187,500.0,6.513e-05,2]
[405895640,1771405835224,500.0,6.513e-05,2]
[405895641,1771405835262,435.78649825,6.513e-05,2]